fUSD/lending_fUSD_20251113
["ID","MTS","AMOUNT","RATE_DAILY","PERIOD"]
[393885617,1763071584824,-177.2,0.00045835,30]
[393885618,1763071585017,-416.38,0.00045835,30]
[393885619,1763071585068,-169.32,0.00045835,30]
[393885620,1763071585113,-169.32,0.00045835,30]
[393885621,1763071585156,-177.2,0.00045835,30]
[393885622,1763071585198,-416.38,0.00045835,30]
[393885623,1763071585241,-416.38,0.00045835,30]
[393885624,1763071585282,-168.33,0.00045835,30]
[393885625,1763071585325,-356.76,0.00045835,30]
[393885626,1763071585366,-169.32,0.00045835,30]
[393885627,1763071585409,-169.32,0.00045835,30]
[393885628,1763071585452,-177.2,0.00045835,30]
[393885629,1763071585495,-177.2,0.00045835,30]
[393885630,1763071585537,-206.37744859,0.00045858,120]
[393885631,1763071585579,-200.0,0.00045922,120]
[393885632,1763071585620,-500.0,0.00045935,60]
[393885633,1763071585662,-1000.0,0.00046,120]
[393885634,1763071585709,-1000000.0,0.00046,120]
[393885635,1763071585753,-314924.11957798,0.00046,120]
[393885636,1763071586389,830.83,0.00013699,2]
[393885642,1763071589611,-500.0,0.00043356,60]
[393885643,1763071589655,-500.0,0.00044452,60]
[393885644,1763071589699,-500.0,0.00045548,60]
[393885645,1763071589745,-685075.88042202,0.00046,120]
[393885646,1763071589786,-204.22297742,0.00046,30]
[393885647,1763071589828,-676.16821318,0.00046,90]
[393885648,1763071589874,-200.0,0.00046,120]
[393885649,1763071589920,-150.0,0.00046,120]
[393885650,1763071589964,-1832.84850906,0.00046,30]
[393885651,1763071590006,-300.0,0.00046,60]
[393885652,1763071590050,-154.0,0.00046,120]
[393885653,1763071590092,-55680.84224619,0.00046,30]
[393885654,1763071590133,-150.0,0.00046,30]
[393885655,1763071590177,-2368.89,0.00046,30]
[393885656,1763071590217,-1665.70454321,0.00046,120]
[393885657,1763071590257,-1137.54936171,0.00046,120]
[393885658,1763071590298,-203.5,0.00046055,120]
[393885659,1763071590339,-699.71,0.00046156,30]
[393885660,1763071590378,-477.93,0.00046156,30]
[393885661,1763071590417,-477.93,0.00046156,30]
[393885662,1763071590456,-699.71,0.00046156,30]
[393885663,1763071590496,-477.93,0.00046156,30]
[393885664,1763071590536,-699.71,0.00046156,30]
[393885665,1763071590579,-477.93,0.00046156,30]
[393885666,1763071590620,-699.71,0.00046156,30]
[393885667,1763071590661,-477.93,0.00046156,30]
[393885668,1763071590700,-477.93,0.00046156,30]
[393885669,1763071590741,-699.71,0.00046156,30]
[393885670,1763071590782,-477.93,0.00046156,30]
[393885671,1763071590824,-699.71,0.00046156,30]
[393885672,1763071590867,-477.93,0.00046156,30]
[393885673,1763071590911,-477.93,0.00046156,30]
[393885674,1763071590953,-699.71,0.00046156,30]
[393885675,1763071590995,-699.71,0.00046156,30]
[393885676,1763071591037,-477.93,0.00046156,30]
[393885677,1763071591077,-699.71,0.00046156,30]
[393885678,1763071591120,-474.74,0.00046156,30]
[393885679,1763071591164,-477.64,0.00046156,30]
[393885680,1763071591211,-699.71,0.00046156,30]
[393885681,1763071591255,-699.71,0.00046156,30]
[393885682,1763071591297,-1091.82,0.00046156,30]
[393885683,1763071591341,-152.0,0.000462,120]
[393885684,1763071591382,-206.3774486,0.00046222,120]
[393885685,1763071591427,-1000000.0,0.0004625,120]
[393885686,1763071591471,-1000000.0,0.0004625,120]
[393885687,1763071591511,-549.92,0.00046328,30]
[393885688,1763071591550,-549.92,0.00046328,30]
[393885689,1763071591592,-549.92,0.00046328,30]
[393885690,1763071591634,-549.92,0.00046328,30]
[393885691,1763071591675,-549.92,0.00046328,30]
[393885692,1763071591716,-289.75384944,0.000464,120]
[393885693,1763071591758,-1240.38072304,0.00046466,120]
[393885694,1763071591804,-2732.225,0.00046472,77]
[393885695,1763071591850,-1000000.0,0.000465,120]
[393885696,1763071591903,-1000000.0,0.000465,120]
[393885697,1763071591950,-300.29,0.00046567,30]
[393885698,1763071591991,-150.0,0.00046567,30]
[393885699,1763071592032,-150.0,0.00046567,30]
[393885700,1763071592072,-150.0,0.00046567,30]
[393885701,1763071592113,-150.0,0.00046567,30]
[393885702,1763071592154,-150.0,0.00046567,30]
[393885703,1763071592196,-1040.93,0.00046567,30]
[393885704,1763071592235,-150.0,0.00046567,30]
[393885705,1763071592280,-150.0,0.00046567,30]
[393885706,1763071592324,-169.32,0.00046567,30]
[393885707,1763071592369,-177.2,0.00046567,30]
[393885708,1763071592416,-150.0,0.00046567,30]
[393885709,1763071592461,-150.0,0.00046567,30]
[393885710,1763071592505,-150.0,0.00046567,30]
[393885711,1763071592549,-169.32,0.00046567,30]
[393885712,1763071592594,-1207.63,0.00046567,30]
[393885713,1763071592638,-177.2,0.00046567,30]
[393885714,1763071592686,-150.0,0.00046567,30]
[393885715,1763071592730,-169.32,0.00046567,30]
[393885716,1763071592921,-177.2,0.00046567,30]
[393885717,1763071593006,-150.0,0.00046567,30]
[393885718,1763071593053,-150.0,0.00046567,30]
[393885719,1763071593098,-1207.63,0.00046567,30]
[393885720,1763071593145,-150.0,0.00046567,30]
[393885721,1763071593195,-746.71,0.00046567,30]
[393885722,1763071593241,-169.32,0.00046567,30]
[393885723,1763071593283,-150.0,0.00046567,30]
[393885724,1763071593328,-177.2,0.00046567,30]
[393885725,1763071593374,-169.32,0.00046567,30]
[393885726,1763071593419,-177.2,0.00046567,30]
[393885727,1763071593464,-150.0,0.00046567,30]
[393885728,1763071593507,-177.2,0.00046567,30]
[393885729,1763071593548,-169.32,0.00046567,30]
[393885730,1763071593593,-169.32,0.00046567,30]
[393885731,1763071593638,-177.2,0.00046567,30]
[393885732,1763071593683,-150.0,0.00046567,30]
[393885733,1763071593729,-177.2,0.00046567,30]
[393885734,1763071593774,-169.32,0.00046567,30]
[393885735,1763071593820,-169.32,0.00046567,30]
[393885736,1763071593865,-177.2,0.00046567,30]
[393885737,1763071593912,-175.4,0.00046567,30]
[393885738,1763071593955,-177.2,0.00046567,30]
[393885739,1763071593999,-177.2,0.00046567,30]
[393885740,1763071594041,-169.21,0.00046567,30]
[393885741,1763071594084,-177.09,0.00046567,30]
[393885742,1763071594128,-500.0,0.00046644,60]
[393885743,1763071594171,-177.2,0.00046657,30]
[393885744,1763071594212,-353.55,0.00046657,30]
[393885745,1763071594259,-214731.02670613,0.0004675,120]
[393885746,1763071598805,-676.97,0.0004575,120]
[393885747,1763071598857,-245.02,0.0004575,120]
[393885748,1763071598910,-669.31,0.0004575,120]
[393885749,1763071598957,-785268.97329387,0.0004675,120]
[393885750,1763071599003,-1000000.0,0.0004675,120]
[393885751,1763071599048,-200.0,0.00046788,120]
[393885752,1763071599093,-413.27521857,0.000468,120]
[393885753,1763071599143,-152.0,0.000469,120]
[393885754,1763071599195,-316.86,0.00046931,30]
[393885755,1763071599238,-150.0,0.00046931,30]
[393885756,1763071599282,-212.0,0.0004698,30]
[393885757,1763071599327,-1000000.0,0.00047,120]
[393885758,1763071599375,-1000000.0,0.00047,120]
[393885759,1763071599419,-2421.66349243,0.00047,120]
[393885760,1763071599460,-150.0,0.00047,120]
[393885761,1763071599501,-1000.0,0.00047,120]
[393885762,1763071599542,-22909.13692979,0.00047,38]
[393885763,1763071599583,-154.0,0.00047,120]
[393885764,1763071599623,-150.0,0.00047,30]
[393885765,1763071599666,-500.0,0.00047031,60]
[393885766,1763071599710,-549.92,0.0004715,30]
[393885767,1763071599751,-549.92,0.0004715,30]
[393885768,1763071599796,-549.92,0.0004715,30]
[393885769,1763071599845,-549.92,0.0004715,30]
[393885770,1763071599889,-549.92,0.0004715,30]
[393885771,1763071599933,-549.92,0.0004715,30]
[393885772,1763071599976,-549.92,0.0004715,30]
[393885773,1763071600024,-549.92,0.0004715,30]
[393885774,1763071600074,-549.92,0.0004715,30]
[393885775,1763071600122,-549.92,0.0004715,30]
[393885776,1763071600170,-549.92,0.0004715,30]
[393885777,1763071600221,-549.92,0.0004715,30]
[393885778,1763071600272,-549.92,0.0004715,30]
[393885779,1763071600322,-549.92,0.0004715,30]
[393885780,1763071600364,-549.92,0.0004715,30]
[393885781,1763071600408,-549.92,0.0004715,30]
[393885782,1763071600452,-549.92,0.0004715,30]
[393885783,1763071600493,-549.92,0.0004715,30]
[393885784,1763071600535,-549.92,0.0004715,30]
[393885785,1763071600576,-549.92,0.0004715,30]
[393885786,1763071600620,-1000000.0,0.0004725,120]
[393885787,1763071600666,-173412.39106534,0.0004725,120]
[393885788,1763071601014,-7269.2247022,0.00016982,2]
[393885789,1763071601030,-8930.03144672,0.00016982,2]
[393885790,1763071603815,-549.92,0.00046328,30]
[393885791,1763071603868,-826587.60893466,0.0004725,120]
[393885792,1763071603921,-229.40537778,0.00047308,120]
[393885793,1763071603966,-150.0,0.00047389,30]
[393885794,1763071604010,-150.0,0.00047389,30]
[393885795,1763071604054,-150.0,0.00047389,30]
[393885796,1763071604100,-150.0,0.00047434,120]
[393885797,1763071604145,-384285.1507,0.00047444,30]
[393885798,1763071604188,-549.92,0.00047477,30]
[393885799,1763071604231,-549.92,0.00047477,30]
[393885800,1763071604273,-549.92,0.00047477,30]
[393885801,1763071604313,-984.2,0.00047477,30]
[393885802,1763071604353,-549.92,0.00047479,30]
[393885803,1763071604394,-549.92,0.00047479,30]
[393885804,1763071604437,-549.92,0.00047479,30]
[393885805,1763071604477,-549.92,0.00047479,30]
[393885806,1763071604518,-549.92,0.00047479,30]
[393885807,1763071604558,-549.92,0.00047479,30]
[393885808,1763071604601,-549.92,0.00047479,30]
[393885809,1763071604644,-549.92,0.00047479,30]
[393885810,1763071604686,-1099.84,0.00047479,30]
[393885811,1763071604727,-549.92,0.00047479,30]
[393885812,1763071604770,-549.92,0.00047479,30]
[393885813,1763071604814,-549.92,0.00047479,30]
[393885814,1763071604855,-549.92,0.00047479,30]
[393885815,1763071604903,-549.92,0.00047479,30]
[393885816,1763071604950,-549.92,0.00047479,30]
[393885817,1763071604995,-549.92,0.00047479,30]
[393885818,1763071605039,-549.92,0.00047479,30]
[393885819,1763071605080,-549.92,0.00047479,30]
[393885820,1763071605123,-549.92,0.00047479,30]
[393885821,1763071605168,-549.92,0.00047479,30]
[393885822,1763071605213,-549.92,0.00047479,30]
[393885823,1763071605255,-549.92,0.00047479,30]
[393885824,1763071605297,-549.92,0.00047479,30]
[393885825,1763071605337,-549.92,0.00047479,30]
[393885826,1763071605384,-1000000.0,0.000475,120]
[393885827,1763071605432,-1000000.0,0.000475,120]
[393885828,1763071605473,-777.61202718,0.000475,120]
[393885829,1763071605514,-500.0,0.000475,120]
[393885830,1763071605555,-152.0,0.000476,120]
[393885831,1763071605597,-200.0,0.00047654,120]
[393885832,1763071605640,-153.68554165,0.0004774,60]
[393885833,1763071605685,-1000000.0,0.0004775,120]
[393885834,1763071605730,-769582.65741873,0.0004775,120]
[393885835,1763071608742,-2000.0,0.00040848,30]
[393885836,1763071608987,-230417.34258127,0.0004775,120]
[393885837,1763071609031,-150.0,0.00047964,120]
[393885838,1763071609073,-1000.0,0.00047999,120]
[393885839,1763071609114,-1000.0,0.00048,120]
[393885840,1763071609157,-1000000.0,0.00048,120]
[393885841,1763071609197,-1815.98425187,0.00048,120]
[393885842,1763071609237,-255.86828012,0.00048,120]
[393885843,1763071609277,-652.23868685,0.00048,120]
[393885844,1763071609317,-509.91651594,0.00048,120]
[393885845,1763071609356,-177.96518171,0.00048,120]
[393885846,1763071609397,-200.0,0.00048,120]
[393885847,1763071609436,-154.0,0.00048,120]
[393885848,1763071609476,-150.0,0.00048,30]
[393885849,1763071609517,-1665.70454321,0.00048,120]
[393885850,1763071609563,-1137.54936171,0.00048,120]
[393885851,1763071609612,-150.0,0.00048,120]
[393885852,1763071609656,-150.0,0.00048,120]
[393885853,1763071609698,-150.0,0.00048,120]
[393885854,1763071609745,-413.75362525,0.00048,120]
[393885855,1763071609788,-699.29,0.00048202,30]
[393885856,1763071609831,-955.28,0.00048202,30]
[393885857,1763071609878,-1000000.0,0.0004825,120]
[393885858,1763071609924,-1000000.0,0.0004825,120]
[393885859,1763071609966,-352.72,0.00048282,30]
[393885860,1763071610010,-152.0,0.000483,120]
[393885861,1763071610053,-150.0,0.00048467,120]
[393885862,1763071610096,-150.0,0.00048484,120]
[393885863,1763071610144,-1000000.0,0.000485,120]
[393885864,1763071610191,-755390.38697207,0.000485,120]
[393885865,1763071614850,-500.0,0.00044191,60]
[393885866,1763071614902,-500.0,0.00045287,60]
[393885867,1763071614950,-500.0,0.00046383,60]
[393885868,1763071614995,-349.91227699,0.00047479,60]
[393885869,1763071615044,-244609.61302793,0.000485,120]
[393885870,1763071615088,-200.0,0.0004852,120]
[393885871,1763071615136,-1000000.0,0.0004875,120]
[393885872,1763071615184,-1000000.0,0.0004875,120]
[393885873,1763071615227,-500.0,0.00048767,30]
[393885874,1763071615269,-1220.11658195,0.00048875,60]
[393885875,1763071615309,-783.33,0.00048888,120]
[393885876,1763071615353,-399.88394143,0.000489,120]
[393885877,1763071615394,-212.0,0.0004899,30]
[393885878,1763071615434,-1000.0,0.00048999,120]
[393885879,1763071615477,-50000.0,0.00049,49]
[393885880,1763071615521,-1000000.0,0.00049,120]
[393885881,1763071615562,-567.59377069,0.00049,120]
[393885882,1763071615602,-787.41396637,0.00049,30]
[393885883,1763071615644,-196.68317105,0.00049,120]
[393885884,1763071615685,-1749.48713076,0.00049,120]
[393885885,1763071615731,-1434.08221438,0.00049,120]
[393885886,1763071615774,-1020.0,0.00049,120]
[393885887,1763071615817,-152.0,0.00049,120]
[393885888,1763071615859,-154.0,0.00049,120]
[393885889,1763071615905,-150.0,0.00049,30]
[393885890,1763071615952,-500.0,0.00049041,30]
[393885891,1763071615994,-177.2,0.00049161,30]
[393885892,1763071616037,-177.2,0.00049161,30]
[393885893,1763071616078,-177.2,0.00049161,30]
[393885894,1763071616119,-169.32,0.00049161,30]
[393885895,1763071616164,-477.93,0.00049161,30]
[393885896,1763071616206,-572.52,0.00049161,30]
[393885897,1763071616247,-477.93,0.00049161,30]
[393885898,1763071616288,-169.32,0.00049161,30]
[393885899,1763071616330,-477.93,0.00049161,30]
[393885900,1763071616372,-169.32,0.00049161,30]
[393885901,1763071616412,-169.32,0.00049161,30]
[393885902,1763071616452,-477.93,0.00049161,30]
[393885903,1763071616697,-477.93,0.00049161,30]
[393885904,1763071616747,-169.32,0.00049161,30]
[393885905,1763071616793,-169.32,0.00049161,30]
[393885906,1763071616836,-477.93,0.00049161,30]
[393885907,1763071616882,-477.93,0.00049161,30]
[393885908,1763071616928,-169.32,0.00049161,30]
[393885909,1763071616972,-477.93,0.00049161,30]
[393885910,1763071617028,-169.32,0.00049161,30]
[393885911,1763071617074,-477.93,0.00049161,30]
[393885912,1763071617117,-169.32,0.00049161,30]
[393885913,1763071617160,-477.93,0.00049161,30]
[393885914,1763071617203,-169.32,0.00049161,30]
[393885915,1763071617246,-477.93,0.00049161,30]
[393885916,1763071617288,-169.32,0.00049161,30]
[393885917,1763071617332,-169.32,0.00049161,30]
[393885918,1763071617375,-477.93,0.00049161,30]
[393885919,1763071617420,-477.93,0.00049161,30]
[393885920,1763071617466,-169.32,0.00049161,30]
[393885921,1763071617510,-477.93,0.00049161,30]
[393885922,1763071617553,-477.93,0.00049161,30]
[393885923,1763071617596,-150.0,0.00049161,30]
[393885924,1763071617641,-150.0,0.00049161,30]
[393885925,1763071617684,-699.71,0.00049161,30]
[393885926,1763071617738,-477.93,0.00049161,30]
[393885927,1763071617786,-150.0,0.00049161,30]
[393885928,1763071617832,-150.0,0.00049161,30]
[393885929,1763071617879,-150.0,0.00049161,30]
[393885930,1763071617925,-150.0,0.00049161,30]
[393885931,1763071617970,-150.0,0.00049161,30]
[393885932,1763071618014,-150.0,0.00049161,30]
[393885933,1763071618057,-150.0,0.00049161,30]
[393885934,1763071618105,-150.0,0.00049161,30]
[393885935,1763071618148,-302.48,0.00049161,30]
[393885936,1763071618190,-150.0,0.00049161,30]
[393885937,1763071618231,-150.0,0.00049161,30]
[393885938,1763071618273,-150.0,0.00049161,30]
[393885939,1763071618317,-150.0,0.00049161,30]
[393885940,1763071618362,-150.0,0.00049161,30]
[393885941,1763071618407,-150.0,0.00049161,30]
[393885942,1763071618448,-150.0,0.00049161,30]
[393885943,1763071618490,-150.0,0.00049161,30]
[393885944,1763071618531,-150.0,0.00049161,30]
[393885945,1763071618570,-150.0,0.00049161,30]
[393885946,1763071618612,-300.0,0.00049161,30]
[393885947,1763071618656,-662.12,0.00049161,30]
[393885948,1763071618701,-150.0,0.00049161,30]
[393885949,1763071618747,-150.0,0.00049161,30]
[393885950,1763071618792,-177.2,0.00049161,30]
[393885951,1763071618840,-1207.63,0.00049161,30]
[393885952,1763071618887,-187.1,0.00049161,30]
[393885953,1763071618929,-150.0,0.00049161,30]
[393885954,1763071618973,-477.93,0.00049161,30]
[393885955,1763071619016,-699.71,0.00049161,30]
[393885956,1763071619084,-1000000.0,0.0004925,120]
[393885957,1763071619143,-673397.84391845,0.0004925,120]
[393885958,1763071622788,-500.0,0.000485,120]
[393885959,1763071622835,-500.0,0.00048774,120]
[393885960,1763071622881,-500.0,0.00049048,120]
[393885961,1763071622929,-326602.15608155,0.0004925,120]
[393885962,1763071622973,-337.32010727,0.00049315,120]
[393885963,1763071623018,-600.0,0.00049315,30]
[393885964,1763071623061,-600.0,0.00049315,30]
[393885965,1763071623103,-600.0,0.00049315,30]
[393885966,1763071623144,-600.0,0.00049315,30]
[393885967,1763071623185,-783.42679292,0.00049315,30]
[393885968,1763071623229,-604.77033048,0.00049315,30]
[393885969,1763071623271,-500.0,0.00049315,33]
[393885970,1763071623315,-500.0,0.00049315,33]
[393885971,1763071623356,-500.0,0.00049315,60]
[393885972,1763071623398,-500.0,0.00049322,120]
[393885973,1763071623439,-200.0,0.00049386,120]
[393885974,1763071623481,-384285.1507,0.00049444,30]
[393885975,1763071623523,-1000000.0,0.000495,120]
[393885976,1763071623568,-1000000.0,0.000495,120]
[393885977,1763071623608,-1240.89008502,0.000495,120]
[393885978,1763071623649,-168.28548212,0.000495,120]
[393885979,1763071623690,-500.0,0.00049589,60]
[393885980,1763071623731,-500.0,0.00049596,120]
[393885981,1763071623773,-152.0,0.000497,120]
[393885982,1763071623817,-1000000.0,0.0004975,120]
[393885983,1763071623863,-1000000.0,0.0004975,120]
[393885984,1763071623912,-500.0,0.00049863,60]
[393885985,1763071623954,-500.0,0.0004987,120]
[393885986,1763071623997,-2230.83872913,0.00049885,120]
[393885987,1763071624039,-1116.97,0.00049892,120]
[393885988,1763071624081,-6093.02147616,0.000499,120]
[393885989,1763071624123,-1000.0,0.00049999,120]
[393885990,1763071624170,-166.75369239,0.00049999,120]
[393885991,1763071624211,-400.80703798,0.00049999,120]
[393885992,1763071624251,-454.64994694,0.00049999,120]
[393885993,1763071624291,-500.0,0.00049999,120]
[393885994,1763071624332,-500.0,0.00049999,120]
[393885995,1763071624373,-500.0,0.00049999,120]
[393885996,1763071624416,-500.0,0.00049999,120]
[393885997,1763071624456,-189.2917568,0.00049999,120]
[393885998,1763071624499,-500.0,0.00049999,120]
[393885999,1763071624541,-559.8694977,0.00049999,120]
[393886000,1763071624586,-188.89740764,0.00049999,120]
[393886001,1763071624629,-500.0,0.00049999,120]
[393886002,1763071624672,-500.0,0.00049999,120]
[393886003,1763071624713,-500.0,0.00049999,120]
[393886004,1763071624758,-500.0,0.00049999,120]
[393886005,1763071624807,-500.0,0.00049999,120]
[393886006,1763071624858,-500.0,0.00049999,120]
[393886007,1763071624915,-549.53949468,0.00049999,120]
[393886008,1763071624962,-50000.0,0.0005,50]
[393886009,1763071625006,-587.37,0.0005,120]
[393886010,1763071625049,-200.0,0.0005,120]
[393886011,1763071625096,-1806.53,0.0005,120]
[393886012,1763071625143,-206681.46138122,0.0005,120]
[393886013,1763071627728,-793318.53861878,0.0005,120]
[393886014,1763071627772,-3111.59289048,0.0005,120]
[393886015,1763071627818,-497.48542222,0.0005,120]
[393886016,1763071627863,-2503.18803639,0.0005,120]
[393886017,1763071627914,-1292.99913439,0.0005,120]
[393886018,1763071627959,-1083.55288522,0.0005,120]
[393886019,1763071628007,-225.06860651,0.0005,120]
[393886020,1763071628050,-165.09925428,0.0005,120]
[393886021,1763071628095,-500.0,0.0005,30]
[393886022,1763071628138,-424.72362803,0.0005,60]
[393886023,1763071628191,-200.0,0.0005,120]
[393886024,1763071628236,-150.0,0.0005,120]
[393886025,1763071628278,-2500.0,0.0005,30]
[393886026,1763071628322,-154.0,0.0005,120]
[393886027,1763071628364,-200.0,0.0005,120]
[393886028,1763071628406,-150.0,0.0005,120]
[393886029,1763071628448,-476.0731045,0.0005,120]
[393886030,1763071628494,-700000.0,0.0005,120]
[393886031,1763071628535,-500.0,0.00050137,60]
[393886032,1763071628577,-500.0,0.00050144,120]
[393886033,1763071628623,-1000000.0,0.0005025,120]
[393886034,1763071628670,-1000000.0,0.0005025,120]
[393886035,1763071628712,-200.0,0.00050252,120]
[393886036,1763071628755,-500.0,0.00050411,60]
[393886037,1763071628800,-500.0,0.00050418,120]
[393886038,1763071628844,-2715.891837,0.000505,120]
[393886039,1763071628891,-1000000.0,0.000505,120]
[393886040,1763071628939,-488131.7865822,0.000505,120]
[393886058,1763071632903,-667.7,0.00049,120]
[393886059,1763071632948,-254.85552742,0.00049,120]
[393886060,1763071632996,-759.9653565,0.00049,120]
[393886061,1763071633040,-150.0,0.00049999,50]
[393886062,1763071633082,-150.0,0.00049999,50]
[393886063,1763071633323,-152.5159152,0.00049999,50]
[393886064,1763071633365,-150.0,0.00049999,50]
[393886065,1763071633407,-150.0,0.00049999,50]
[393886066,1763071633447,-164.4113119,0.00049999,50]
[393886067,1763071633493,-500.0,0.00049999,50]
[393886068,1763071633537,-500.0,0.00049999,50]
[393886069,1763071633582,-511868.2134178,0.000505,120]
[393886070,1763071633621,-2194.41529914,0.000505,120]
[393886071,1763071633663,-152.0,0.000505,120]
[393886072,1763071633702,-1145.03176873,0.000505,120]
[393886073,1763071633743,-500.0,0.00050685,60]
[393886074,1763071633784,-500.0,0.00050692,120]
[393886075,1763071633826,-150.0,0.00050695,120]
[393886076,1763071633869,-1000000.0,0.0005075,120]
[393886077,1763071633921,-1000000.0,0.0005075,120]
[393886078,1763071633961,-1198.13035918,0.000509,120]
[393886079,1763071634003,-804.2,0.00050959,60]
[393886080,1763071634045,-500.0,0.00050966,120]
[393886081,1763071634086,-1000.0,0.00050999,120]
[393886082,1763071634131,-50000.0,0.00051,51]
[393886083,1763071634174,-1055.0,0.00051,120]
[393886084,1763071634224,-1000000.0,0.00051,120]
[393886085,1763071634271,-154.0,0.00051,120]
[393886086,1763071634313,-150.0,0.00051,120]
[393886087,1763071634355,-3331.40908641,0.00051,120]
[393886088,1763071634395,-2275.09872341,0.00051,120]
[393886089,1763071634438,-700.0,0.00051111,30]
[393886090,1763071634480,-220.422072,0.00051118,120]
[393886091,1763071634523,-152.0,0.000512,120]
[393886092,1763071634567,-500.0,0.0005124,120]
[393886093,1763071634613,-1000000.0,0.0005125,120]
[393886094,1763071634662,-417850.63116231,0.0005125,120]
[393886107,1763071637320,-500.0,0.00049999,50]
[393886108,1763071637364,-500.0,0.00049999,50]
[393886109,1763071637408,-500.0,0.00049999,50]
[393886110,1763071637451,-523.57597495,0.00049999,50]
[393886111,1763071637496,-500.0,0.00049999,50]
[393886112,1763071637540,-500.0,0.00049999,50]
[393886113,1763071637584,-500.0,0.00049999,50]
[393886114,1763071637630,-500.0,0.00049999,50]
[393886115,1763071637674,-500.0,0.00049999,50]
[393886116,1763071637717,-294.12430704,0.00049999,50]
[393886117,1763071637762,-151.0,0.00051,120]
[393886118,1763071637808,-582149.36883769,0.0005125,120]
[393886119,1763071637851,-3002.54,0.000513,120]
[393886120,1763071637892,-906.0,0.00051354,120]
[393886121,1763071637938,-1000000.0,0.000515,120]
[393886122,1763071637985,-1000000.0,0.000515,120]
[393886123,1763071638026,-500.0,0.00051514,120]
[393886124,1763071638067,-1853.39,0.000516,120]
[393886125,1763071638106,-1853.39,0.000516,120]
[393886126,1763071638151,-1853.39,0.000516,120]
[393886127,1763071638192,-1811.70380021,0.00051749,120]
[393886128,1763071638235,-213.04364559,0.00051749,120]
[393886129,1763071638279,-1000000.0,0.0005175,120]
[393886130,1763071638327,-1000000.0,0.0005175,120]
[393886131,1763071638370,-500.0,0.00051755,30]
[393886132,1763071638416,-500.0,0.00051755,30]
[393886133,1763071638459,-500.0,0.00051755,30]
[393886134,1763071638503,-570.17328647,0.00051755,30]
[393886135,1763071638545,-500.0,0.00051755,30]
[393886136,1763071638590,-500.0,0.00051755,30]
[393886137,1763071638637,-500.0,0.00051755,30]
[393886138,1763071638685,-500.0,0.00051755,30]
[393886139,1763071638735,-500.0,0.00051755,30]
[393886140,1763071638782,-500.0,0.00051755,30]
[393886141,1763071638830,-500.0,0.00051755,30]
[393886142,1763071638875,-500.0,0.00051755,30]
[393886143,1763071638926,-500.0,0.00051755,30]
[393886144,1763071638970,-500.0,0.00051755,30]
[393886145,1763071639015,-500.0,0.00051755,30]
[393886146,1763071639060,-638.55557633,0.00051755,30]
[393886147,1763071639104,-500.0,0.00051755,30]
[393886148,1763071639144,-500.0,0.00051755,30]
[393886149,1763071639185,-500.0,0.00051755,30]
[393886150,1763071639225,-362.47037392,0.00051755,30]